fUST/lending_fUST_20250817
["ID","MTS","AMOUNT","RATE_DAILY","PERIOD"]
[379662801,1755364246730,-480.0,0.00021249,2]
[379662803,1755364246740,-480.0,0.00021249,2]
[379662805,1755364246749,-480.0,0.00021249,2]
[379662807,1755364246758,-480.0,0.00021249,2]
[379662809,1755364246767,-480.0,0.00021249,2]
[379662811,1755364246776,-480.0,0.00021249,2]
[379662813,1755364246786,-480.0,0.00021249,2]
[379662815,1755364246798,-480.0,0.00021249,2]
[379662817,1755364246807,-480.0,0.00021249,2]
[379662820,1755364246816,-632.56,0.00021249,2]
[379662822,1755364246825,-480.0,0.00021249,2]
[379662825,1755364246834,-460.0,0.00021249,2]
[379662828,1755364246843,-480.0,0.00021249,2]
[379662830,1755364246852,-480.0,0.00021249,2]
[379662832,1755364246861,-589.6,0.00021249,2]
[379662834,1755364246872,-589.6,0.00021249,2]
[379662836,1755364246881,-480.0,0.00021249,2]
[379662838,1755364246892,-480.0,0.00021249,2]
[379662840,1755364246901,-480.0,0.00021249,2]
[379662842,1755364246911,-480.0,0.00021249,2]
[379662844,1755364246920,-480.0,0.00021249,2]
[379662846,1755364246929,-495.0,0.00021249,2]
[379662848,1755364246939,-480.0,0.00021249,2]
[379662850,1755364246948,-1176.84,0.00021249,2]
[379662852,1755364246958,-460.0,0.00021249,2]
[379662854,1755364246966,-480.0,0.00021249,2]
[379662856,1755364246976,-480.0,0.00021249,2]
[379662858,1755364246985,-480.0,0.00021249,2]
[379662860,1755364246994,-480.0,0.00021249,2]
[379662862,1755364247003,-480.0,0.00021249,2]
[379662864,1755364247012,-480.0,0.00021249,2]
[379662866,1755364247021,-480.0,0.00021249,2]
[379662868,1755364247030,-1869.58,0.00021249,2]
[379662870,1755364247039,-460.0,0.00021249,2]
[379662872,1755364247048,-480.0,0.00021249,2]
[379662874,1755364247058,-701.16,0.00021249,2]
[379662876,1755364247067,-5928.89,0.00021249,2]
[379662878,1755364247076,-1399.68,0.00021249,2]
[379662880,1755364247085,-460.0,0.00021249,2]
[379662882,1755364247094,-480.0,0.00021249,2]
[379662884,1755364247104,-480.0,0.00021249,2]
[379662886,1755364247113,-1213.19,0.00021249,2]
[379662888,1755364247123,-495.77095871,0.00021249,2]
[379662890,1755364247132,-1691.67,0.00021249,2]
[379662892,1755364247142,-890.39,0.00021249,2]
[379662894,1755364247151,-480.0,0.00021249,2]
[379662896,1755364247160,-765.37,0.00021249,2]
[379662898,1755364247169,-480.0,0.00021249,2]
[379662900,1755364247178,-480.0,0.00021249,2]
[379662902,1755364247187,-378.07456645,0.00021249,2]
[379662904,1755364247197,-460.0,0.00021249,2]
[379662907,1755364247206,-480.0,0.00021249,2]
[379662909,1755364247215,-480.0,0.00021249,2]
[379662910,1755364247224,-480.0,0.00021249,2]
[379662912,1755364247233,-480.0,0.00021249,2]
[379662914,1755364247243,-480.0,0.00021249,2]
[379662916,1755364247252,-480.0,0.00021249,2]
[379662919,1755364247261,-480.0,0.00021249,2]
[379662920,1755364247271,-480.0,0.00021249,2]
[379662922,1755364247280,-480.0,0.00021249,2]
[379662925,1755364247290,-1294.52,0.00021249,2]
[379662926,1755364247299,-480.0,0.00021249,2]
[379662928,1755364247308,-460.0,0.00021249,2]
[379662930,1755364247317,-480.0,0.00021249,2]
[379662933,1755364247327,-480.0,0.00021249,2]
[379662935,1755364247337,-480.0,0.00021249,2]
[379662937,1755364247350,-1364.37,0.00021249,2]
[379662939,1755364247359,-1496.38,0.00021249,2]
[379662941,1755364247368,-786.6,0.00021249,2]
[379662943,1755364247377,-480.0,0.00021249,2]
[379662945,1755364247386,-480.0,0.00021249,2]
[379662947,1755364247395,-480.0,0.00021249,2]
[379662949,1755364247404,-480.0,0.00021249,2]
[379662951,1755364247413,-480.0,0.00021249,2]
[379662953,1755364247422,-480.0,0.00021249,2]
[379662955,1755364247431,-480.0,0.00021249,2]
[379662957,1755364247440,-480.0,0.00021249,2]
[379662959,1755364247448,-460.0,0.00021249,2]
[379662961,1755364247458,-480.0,0.00021249,2]
[379662963,1755364247467,-480.0,0.00021249,2]
[379662965,1755364247476,-480.0,0.00021249,2]
[379662967,1755364247485,-480.0,0.00021249,2]
[379662969,1755364247494,-480.0,0.00021249,2]
[379662971,1755364247503,-460.45368327,0.00021249,2]
[379662973,1755364247512,-480.0,0.00021249,2]
[379662975,1755364247521,-151.0,0.00021257,2]
[379662977,1755364247530,-271.247384,0.00021257,2]
[379662979,1755364247539,-271.247384,0.00021257,2]
[379662981,1755364247548,-500.0,0.00021257,2]
[379662983,1755364247557,-500.0,0.0002127,2]
[379662985,1755364247566,-500.0,0.0002127,2]
[379662986,1755364247575,-500.0,0.0002127,2]
[379662988,1755364247584,-500.0,0.0002127,2]
[379662990,1755364247593,-500.0,0.0002127,2]
[379662992,1755364247602,-500.0,0.00021273,2]
[379662994,1755364247610,-500.0,0.00021273,2]
[379662996,1755364247619,-320.86112733,0.00021273,2]
[379662998,1755364247629,-500.0,0.00021273,2]
[379663001,1755364247637,-500.26391624,0.00021273,2]
[379663003,1755364247648,-500.0,0.00021273,2]
[379663004,1755364247656,-500.0,0.00021273,2]
[379663006,1755364247665,-1659.54,0.00021314,2]
[379663009,1755364247674,-480.0,0.00021314,2]
[379663010,1755364247684,-647.63,0.00021314,2]
[379663012,1755364247692,-1818.07,0.00021314,2]
[379663014,1755364247701,-1496.06,0.00021314,2]
[379663017,1755364247711,-2148.33,0.00021314,2]
[379663019,1755364247720,-480.0,0.00021314,2]
[379663021,1755364247730,-1653.82,0.00021314,2]
[379663023,1755364247739,-933.99,0.00021314,2]
[379663025,1755364247750,-16205.7,0.00021314,2]
[379663027,1755364247759,-480.0,0.00021321,2]
[379663029,1755364247768,-460.0,0.00021321,2]
[379663031,1755364247778,-1177.43,0.00021321,2]
[379663033,1755364247789,-480.0,0.00021321,2]
[379663034,1755364247798,-480.0,0.00021321,2]
[379663036,1755364247807,-480.0,0.00021321,2]
[379663038,1755364247817,-480.0,0.00021321,2]
[379663040,1755364247826,-480.0,0.00021321,2]
[379663042,1755364247835,-480.0,0.00021321,2]
[379663044,1755364247845,-1101.84,0.00021321,2]
[379663046,1755364247854,-480.0,0.00021321,2]
[379663048,1755364247863,-480.0,0.00021321,2]
[379663050,1755364247872,-480.0,0.00021321,2]
[379663053,1755364247882,-480.0,0.00021321,2]
[379663055,1755364247892,-701.52,0.00021321,2]
[379663057,1755364247902,-480.0,0.00021321,2]
[379663059,1755364247911,-480.0,0.00021321,2]
[379663061,1755364247920,-480.0,0.00021321,2]
[379663063,1755364247929,-460.0,0.00021321,2]
[379663065,1755364247938,-871.13,0.00021321,2]
[379663067,1755364247947,-480.0,0.00021321,2]
[379663069,1755364247956,-2093.92,0.00021321,2]
[379663071,1755364247966,-992.75,0.00021321,2]
[379663073,1755364247975,-480.0,0.00021321,2]
[379663086,1755364248093,-480.0,0.00021321,2]
[379663089,1755364248103,-498.02636948,0.00021321,2]
[379663091,1755364248113,-480.0,0.00021321,2]
[379663093,1755364248124,-480.0,0.00021321,2]
[379663095,1755364248134,-480.0,0.00021321,2]
[379663097,1755364248144,-480.0,0.00021321,2]
[379663099,1755364248154,-480.0,0.00021321,2]
[379663101,1755364248164,-480.0,0.00021321,2]
[379663103,1755364248174,-480.0,0.00021321,2]
[379663105,1755364248184,-480.0,0.00021321,2]
[379663107,1755364248195,-204.55175969,0.00021339,2]
[379663109,1755364248207,-168.0,0.0002136,2]
[379663111,1755364248218,-480.0,0.00021414,2]
[379663113,1755364248227,-1340.13,0.00021414,2]
[379663115,1755364248238,-480.0,0.00021414,2]
[379663116,1755364248247,-1318.97,0.00021414,2]
[379663118,1755364248257,-1581.86,0.00021414,2]
[379663120,1755364248266,-480.0,0.00021414,2]
[379663122,1755364248276,-250.0,0.00021439,2]
[379663124,1755364248285,-788.43,0.00021507,2]
[379663126,1755364248295,-480.0,0.00021507,2]
[379663128,1755364248304,-480.0,0.00021507,2]
[379663130,1755364248313,-480.0,0.00021507,2]
[379663132,1755364248323,-480.0,0.00021507,2]
[379663134,1755364248332,-480.0,0.00021507,2]
[379663136,1755364248341,-2243.48,0.00021507,2]
[379663138,1755364248350,-480.0,0.00021507,2]
[379663140,1755364248359,-480.0,0.00021507,2]
[379663142,1755364248368,-793.93,0.00021507,2]
[379663144,1755364248378,-480.0,0.00021507,2]
[379663146,1755364248387,-480.0,0.00021507,2]
[379663148,1755364248396,-288.59831537,0.00021507,2]
[379663150,1755364248405,-730.21,0.00021507,2]
[379663152,1755364248415,-1004.02,0.00021507,2]
[379663154,1755364248425,-480.0,0.00021507,2]
[379663156,1755364248433,-630.03,0.00021507,2]
[379663158,1755364248442,-1947.53,0.00021507,2]
[379663160,1755364248451,-480.0,0.00021507,2]
[379663162,1755364248460,-480.0,0.00021507,2]
[379663164,1755364248468,-480.0,0.00021507,2]
[379663166,1755364248477,-480.0,0.00021507,2]
[379663168,1755364248487,-480.0,0.00021507,2]
[379663170,1755364248495,-480.0,0.00021507,2]
[379663172,1755364248505,-480.0,0.00021507,2]
[379663174,1755364248514,-877.94,0.00021507,2]
[379663176,1755364248522,-480.0,0.00021507,2]
[379663177,1755364248532,-1067.96,0.00021507,2]
[379663179,1755364248541,-1192.59,0.00021507,2]
[379663181,1755364248551,-1406.16,0.00021507,2]
[379663183,1755364248560,-1124.76,0.00021507,2]
[379663184,1755364248569,-480.0,0.00021507,2]
[379663185,1755364248580,-480.0,0.00021507,2]
[379663186,1755364248589,-2241.5,0.00021507,2]
[379663187,1755364248599,-1556.45,0.00021507,2]
[379663188,1755364248608,-1563.78,0.00021507,2]
[379663189,1755364248618,-480.0,0.00021507,2]
[379663190,1755364248627,-589.16,0.00021507,2]
[379663191,1755364248636,-480.0,0.00021507,2]
[379663192,1755364248646,-460.0,0.00021507,2]
[379663193,1755364248655,-1347.09,0.00021507,2]
[379663194,1755364248664,-1962.21,0.00021507,2]
[379663195,1755364248674,-1711.21,0.00021507,2]
[379663196,1755364248683,-1161.09,0.00021507,2]
[379663197,1755364248694,-480.0,0.00021507,2]
[379663199,1755364248704,-2569.75,0.00021507,2]
[379663201,1755364248713,-480.0,0.00021507,2]
[379663203,1755364248723,-480.0,0.00021507,2]
[379663205,1755364248732,-480.0,0.00021507,2]
[379663207,1755364248741,-480.0,0.00021507,2]
[379663209,1755364248751,-1129.93,0.00021508,2]
[379663211,1755364248761,-1129.93,0.00021508,2]
[379663213,1755364248771,-1562.48,0.00021508,2]
[379663215,1755364248780,-480.0,0.00021508,2]
[379663217,1755364248791,-942.38,0.00021508,2]
[379663219,1755364248802,-1569.67,0.00021508,2]
[379663221,1755364248812,-480.0,0.00021508,2]
[379663223,1755364248821,-480.0,0.00021508,2]
[379663225,1755364248830,-480.0,0.00021508,2]
[379663227,1755364248841,-3637.8,0.00021508,2]
[379663229,1755364248851,-5249.45,0.00021508,2]
[379663231,1755364248860,-723.45,0.00021508,2]
[379663233,1755364248871,-480.0,0.00021508,2]
[379663235,1755364248880,-4083.81,0.00021508,2]
[379663236,1755364248889,-480.0,0.00021508,2]
[379663238,1755364248898,-9528.76,0.00021508,2]
[379663240,1755364248908,-1447.43,0.00021508,2]
[379663242,1755364248917,-480.0,0.00021508,2]
[379663244,1755364248927,-480.0,0.00021508,2]
[379663246,1755364248938,-480.0,0.00021508,2]
[379663248,1755364248948,-763.44,0.00021508,2]
[379663250,1755364248957,-1798.09,0.00021508,2]
[379663252,1755364248968,-733.1,0.00021508,2]
[379663254,1755364248978,-797.36,0.00021508,2]
[379663256,1755364248987,-2218.25,0.00021508,2]
[379663258,1755364248997,-480.0,0.00021508,2]
[379663260,1755364249007,-1938.31,0.00021508,2]
[379663262,1755364249017,-437.06304679,0.00021509,2]
[379663264,1755364249027,-254.71840482,0.00021509,2]
[379663266,1755364249037,-480.0,0.00021509,2]
[379663268,1755364249047,-480.0,0.00021509,2]
[379663270,1755364249057,-480.0,0.00021509,2]
[379663272,1755364249067,-480.0,0.00021509,2]
[379663274,1755364249078,-480.0,0.00021509,2]
[379663276,1755364249090,-480.0,0.00021509,2]
[379663278,1755364249100,-480.0,0.00021509,2]
[379663280,1755364249111,-1312.1,0.00021509,2]
[379663282,1755364249121,-303.63590484,0.00021509,2]
[379663284,1755364249132,-440.0,0.00021509,2]
[379663286,1755364249142,-529.41660878,0.00021509,2]
[379663288,1755364249158,-480.0,0.00021509,2]
[379663289,1755364249191,-421.12831416,0.00021509,2]
[379663290,1755364249203,-480.0,0.00021509,2]
[379663292,1755364249212,-792.51,0.00021509,2]
[379663293,1755364249223,-572.29,0.00021509,2]
[379663295,1755364249233,-480.0,0.00021509,2]
[379663297,1755364249243,-480.0,0.00021509,2]
[379663299,1755364249253,-560.73,0.00021509,2]
[379663301,1755364249262,-690.14,0.00021509,2]
[379663303,1755364249272,-480.0,0.00021509,2]
[379663305,1755364249282,-480.0,0.00021509,2]
[379663307,1755364249292,-480.0,0.00021509,2]
[379663309,1755364249301,-480.0,0.00021509,2]
[379663311,1755364249310,-480.0,0.00021509,2]
[379663313,1755364249320,-480.0,0.00021509,2]
[379663315,1755364249329,-480.0,0.00021509,2]
[379663317,1755364249338,-460.0,0.00021509,2]
[379663319,1755364249347,-480.0,0.00021509,2]
[379663321,1755364249356,-480.0,0.00021509,2]
[379663323,1755364249365,-480.0,0.00021509,2]
[379663325,1755364249375,-460.0,0.00021509,2]
[379663327,1755364249384,-440.0,0.00021509,2]
[379663329,1755364249394,-480.0,0.00021509,2]
[379663331,1755364249405,-713.76,0.00021509,2]
[379663333,1755364249414,-480.0,0.00021509,2]
[379663335,1755364249424,-367.36921939,0.00021509,2]
[379663337,1755364249434,-480.0,0.00021509,2]
[379663339,1755364249443,-620.8894089,0.00021509,2]
[379663341,1755364249452,-480.0,0.00021509,2]
[379663343,1755364249461,-480.0,0.00021509,2]
[379663345,1755364249470,-925.85,0.00021509,2]
[379663347,1755364249479,-635.34,0.00021509,2]
[379663349,1755364249489,-480.0,0.00021509,2]
[379663351,1755364249498,-151.0,0.00021509,2]
[379663353,1755364249507,-480.0,0.00021509,2]
[379663355,1755364249516,-271.247384,0.00021509,2]
[379663357,1755364249526,-558.33,0.00021509,2]
[379663359,1755364249536,-271.247384,0.00021509,2]
[379663360,1755364249547,-480.0,0.00021509,2]
[379663362,1755364249555,-440.0,0.00021509,2]
[379663364,1755364249565,-212.14696629,0.00021509,2]
[379663366,1755364249575,-1465.47,0.00021509,2]
[379663368,1755364249584,-480.0,0.00021509,2]
[379663370,1755364249593,-480.0,0.00021509,2]
[379663372,1755364249603,-480.0,0.00021509,2]
[379663374,1755364249613,-480.0,0.00021509,2]
[379663376,1755364249622,-480.0,0.00021509,2]
[379663378,1755364249631,-678.02,0.00021509,2]
[379663380,1755364249640,-480.0,0.00021509,2]
[379663382,1755364249650,-480.0,0.00021509,2]
[379663384,1755364249659,-480.0,0.00021509,2]
[379663386,1755364249668,-1003.66922973,0.00021509,2]
[379663388,1755364249677,-480.0,0.00021509,2]
[379663390,1755364249687,-480.0,0.00021509,2]
[379663392,1755364249696,-480.0,0.00021509,2]
[379663394,1755364249705,-480.0,0.00021509,2]
[379663396,1755364249714,-480.0,0.00021509,2]
[379663398,1755364249723,-480.0,0.00021509,2]
[379663400,1755364249732,-16964.14,0.00021511,2]
[379663402,1755364249742,-2812.25,0.00021511,2]
[379663404,1755364249752,-12191.79,0.00021511,2]
[379663406,1755364249761,-480.0,0.00021523,2]
[379663408,1755364249771,-440.0,0.00021523,2]
[379663410,1755364249780,-1156.62,0.00021523,2]
[379663412,1755364249793,-480.0,0.00021523,2]
[379663414,1755364249803,-480.0,0.00021523,2]
[379663415,1755364249812,-480.0,0.00021523,2]
[379663417,1755364249821,-480.0,0.00021523,2]
[379663419,1755364249829,-480.0,0.00021523,2]
[379663421,1755364249839,-480.0,0.00021523,2]
[379663423,1755364249849,-480.0,0.00021523,2]
[379663425,1755364249858,-480.0,0.00021523,2]
[379663427,1755364249867,-480.0,0.00021523,2]
[379663429,1755364249876,-480.0,0.00021523,2]
[379663431,1755364249886,-460.0,0.00021523,2]
[379663433,1755364249895,-480.0,0.00021523,2]
[379663435,1755364249904,-442.2422269,0.00021523,2]
[379663437,1755364249913,-480.0,0.00021523,2]
[379663439,1755364249922,-480.0,0.00021523,2]
[379663441,1755364249932,-480.0,0.00021523,2]
[379663443,1755364249941,-444.74189389,0.00021523,2]
[379663455,1755364250053,-480.0,0.00021523,2]
[379663457,1755364250063,-495.22,0.00021523,2]
[379663459,1755364250072,-421.95116986,0.00021523,2]
[379663461,1755364250083,-480.0,0.00021523,2]
[379663463,1755364250092,-480.0,0.00021523,2]
[379663465,1755364250102,-480.0,0.00021523,2]
[379663467,1755364250111,-480.0,0.00021523,2]
[379663469,1755364250119,-480.0,0.00021523,2]
[379663471,1755364250128,-480.0,0.00021523,2]
[379663473,1755364250138,-480.0,0.00021523,2]
[379663474,1755364250147,-480.0,0.00021523,2]
[379663476,1755364250157,-480.0,0.00021523,2]
[379663478,1755364250166,-576.61,0.00021523,2]
[379663480,1755364250175,-480.0,0.00021523,2]
[379663482,1755364250184,-480.0,0.00021523,2]
[379663484,1755364250194,-480.0,0.00021523,2]
[379663486,1755364250203,-480.0,0.00021523,2]
[379663488,1755364250212,-480.0,0.00021523,2]
[379663490,1755364250222,-692.97,0.00021523,2]
[379663492,1755364250232,-480.0,0.00021523,2]
[379663494,1755364250242,-618.18,0.00021523,2]
[379663496,1755364250251,-480.0,0.00021523,2]
[379663498,1755364250261,-851.42,0.00021523,2]
[379663500,1755364250270,-1922.47,0.00021523,2]
[379663502,1755364250279,-2826.97,0.00021523,2]
[379663504,1755364250289,-480.0,0.00021523,2]
[379663506,1755364250299,-1610.57,0.00021523,2]
[379663508,1755364250309,-480.0,0.00021523,2]
[379663510,1755364250318,-480.0,0.00021523,2]
[379663512,1755364250328,-497.02,0.00021523,2]
[379663514,1755364250338,-480.0,0.00021523,2]
[379663516,1755364250348,-480.0,0.00021523,2]
[379663518,1755364250357,-480.0,0.00021523,2]
[379663520,1755364250367,-400.0,0.00021523,2]
[379663522,1755364250375,-480.0,0.00021523,2]
[379663524,1755364250386,-183.9196207,0.00021523,2]
[379663526,1755364250397,-480.0,0.00021523,2]
[379663528,1755364250406,-480.0,0.00021523,2]
[379663530,1755364250415,-355.07426791,0.00021523,2]
[379663532,1755364250424,-155.79837104,0.00021523,2]
[379663534,1755364250433,-480.0,0.00021523,2]
[379663536,1755364250442,-480.0,0.00021523,2]
[379663537,1755364250451,-441.03811493,0.00021523,2]
[379663539,1755364250460,-480.0,0.00021523,2]
[379663541,1755364250470,-491.14,0.00021523,2]
[379663543,1755364250479,-480.0,0.00021523,2]
[379663545,1755364250488,-480.0,0.00021523,2]
[379663547,1755364250498,-480.0,0.00021523,2]
[379663549,1755364250507,-480.0,0.00021523,2]
[379663551,1755364250516,-480.0,0.00021523,2]
[379663553,1755364250525,-480.0,0.00021523,2]
[379663555,1755364250535,-480.0,0.00021523,2]
[379663557,1755364250543,-480.0,0.00021523,2]
[379663559,1755364250553,-441.56582152,0.00021523,2]
[379663561,1755364250562,-480.0,0.00021523,2]
[379663563,1755364250571,-460.0,0.00021523,2]
[379663565,1755364250581,-632.56,0.00021523,2]
[379663567,1755364250590,-480.0,0.00021523,2]
[379663569,1755364250599,-480.0,0.00021523,2]
[379663571,1755364250608,-480.0,0.00021523,2]
[379663573,1755364250617,-480.0,0.00021523,2]
[379663575,1755364250625,-480.0,0.00021523,2]
[379663577,1755364250635,-406.91306817,0.00021523,2]
[379663579,1755364250645,-495.0,0.00021523,2]
[379663581,1755364250654,-480.0,0.00021523,2]
[379663583,1755364250664,-1176.84,0.00021523,2]
[379663585,1755364250673,-420.5647736,0.00021523,2]
[379663587,1755364250682,-480.0,0.00021523,2]
[379663589,1755364250691,-480.0,0.00021523,2]
[379663591,1755364250701,-480.0,0.00021523,2]
[379663593,1755364250710,-480.0,0.00021523,2]
[379663595,1755364250718,-461.54439111,0.00021523,2]
[379663597,1755364250726,-480.0,0.00021523,2]
[379663599,1755364250735,-1869.58,0.00021523,2]
[379663601,1755364250744,-480.0,0.00021523,2]
[379663603,1755364250753,-701.16,0.00021523,2]
[379663605,1755364250763,-5928.89,0.00021523,2]
[379663607,1755364250773,-1399.68,0.00021523,2]
[379663609,1755364250782,-420.0,0.00021523,2]
[379663610,1755364250794,-480.0,0.00021523,2]
[379663612,1755364250805,-1213.19,0.00021523,2]
[379663614,1755364250815,-1691.67,0.00021523,2]
[379663616,1755364250824,-890.39,0.00021523,2]
[379663618,1755364250834,-480.0,0.00021523,2]
[379663620,1755364250844,-765.37,0.00021523,2]
[379663622,1755364250854,-480.0,0.00021523,2]
[379663623,1755364250863,-480.0,0.00021523,2]
[379663624,1755364250874,-440.0,0.00021523,2]
[379663625,1755364250883,-440.0,0.00021523,2]
[379663626,1755364250894,-480.0,0.00021523,2]
[379663627,1755364250903,-480.0,0.00021523,2]
[379663628,1755364250912,-480.0,0.00021523,2]
[379663629,1755364250921,-480.0,0.00021523,2]
[379663630,1755364250930,-480.0,0.00021523,2]
[379663631,1755364250939,-480.0,0.00021523,2]
[379663632,1755364250949,-480.0,0.00021523,2]
[379663633,1755364250958,-1294.52,0.00021523,2]
[379663634,1755364250967,-480.0,0.00021523,2]
[379663635,1755364250976,-480.0,0.00021523,2]
[379663636,1755364250986,-480.0,0.00021523,2]
[379663637,1755364250996,-480.0,0.00021523,2]
[379663638,1755364251007,-1364.37,0.00021523,2]
[379663639,1755364251016,-1496.38,0.00021523,2]
[379663640,1755364251025,-786.6,0.00021523,2]
[379663641,1755364251034,-480.0,0.00021523,2]
[379663642,1755364251043,-480.0,0.00021523,2]
[379663643,1755364251052,-480.0,0.00021523,2]
[379663644,1755364251061,-480.0,0.00021523,2]
[379663645,1755364251070,-480.0,0.00021523,2]
[379663646,1755364251079,-480.0,0.00021523,2]
[379663647,1755364251089,-480.0,0.00021523,2]
[379663648,1755364251098,-480.0,0.00021523,2]
[379663649,1755364251107,-480.0,0.00021523,2]
[379663650,1755364251117,-480.0,0.00021523,2]
[379663651,1755364251126,-480.0,0.00021523,2]
[379663652,1755364251135,-480.0,0.00021523,2]
[379663653,1755364251144,-480.0,0.00021523,2]
[379663654,1755364251153,-480.0,0.00021523,2]
[379663655,1755364251163,-156.870479,0.0002157,5]
[379663656,1755364251172,-309.50605196,0.00021573,2]
[379663657,1755364251181,-500.0,0.00021573,2]
[379663658,1755364251191,-411.78390383,0.00021573,2]
[379663659,1755364251200,-500.53606696,0.00021573,2]
[379663660,1755364251209,-501.50738922,0.00021573,2]
[379663661,1755364251218,-500.0,0.00021573,2]
[379663662,1755364251227,-500.0,0.00021573,2]
[379663664,1755364251237,-510.38920139,0.00021573,2]
[379663665,1755364251246,-294.33572204,0.00021573,2]
[379663667,1755364251255,-500.0,0.00021573,2]
[379663669,1755364251265,-204.55175969,0.00021578,2]
[379663671,1755364251274,-1659.54,0.00021588,2]
[379663673,1755364251284,-480.0,0.00021588,2]
[379663675,1755364251293,-647.63,0.00021588,2]
[379663677,1755364251303,-151.0,0.00021588,2]
[379663679,1755364251312,-1818.07,0.00021588,2]
[379663681,1755364251321,-271.247384,0.00021588,2]
[379663683,1755364251330,-271.247384,0.00021588,2]
[379663685,1755364251340,-1496.06,0.00021588,2]
[379663687,1755364251349,-2148.33,0.00021588,2]
[379663689,1755364251358,-465.18418043,0.00021588,2]
[379663691,1755364251369,-1653.82,0.00021588,2]
[379663693,1755364251378,-933.99,0.00021588,2]
[379663695,1755364251387,-16205.7,0.00021588,2]
[379663697,1755364251397,-480.0,0.00021595,2]
[379663699,1755364251406,-1177.43,0.00021595,2]
[379663701,1755364251419,-480.0,0.00021595,2]
[379663703,1755364251431,-480.0,0.00021595,2]
[379663705,1755364251440,-480.0,0.00021595,2]
[379663707,1755364251449,-480.0,0.00021595,2]
[379663709,1755364251458,-480.0,0.00021595,2]
[379663711,1755364251466,-1101.84,0.00021595,2]
[379663713,1755364251475,-480.0,0.00021595,2]
[379663715,1755364251484,-480.0,0.00021595,2]
[379663717,1755364251493,-480.0,0.00021595,2]
[379663719,1755364251503,-480.0,0.00021595,2]
[379663721,1755364251512,-701.52,0.00021595,2]
[379663723,1755364251524,-480.0,0.00021595,2]
[379663725,1755364251533,-480.0,0.00021595,2]
[379663727,1755364251542,-480.0,0.00021595,2]
[379663729,1755364251552,-871.13,0.00021595,2]
[379663731,1755364251561,-480.0,0.00021595,2]
[379663733,1755364251570,-2093.92,0.00021595,2]
[379663735,1755364251579,-992.75,0.00021595,2]
[379663737,1755364251588,-480.0,0.00021595,2]
[379663739,1755364251596,-480.0,0.00021595,2]
[379663741,1755364251606,-480.0,0.00021595,2]
[379663742,1755364251615,-402.20260088,0.00021595,2]
[379663744,1755364251624,-480.0,0.00021595,2]
[379663746,1755364251633,-384.1449626,0.00021595,2]
[379663748,1755364251642,-480.0,0.00021595,2]
[379663750,1755364251651,-480.0,0.00021595,2]
[379663752,1755364251660,-480.0,0.00021595,2]
[379663754,1755364251669,-480.0,0.00021688,2]
[379663756,1755364251678,-1340.13,0.00021688,2]
[379663758,1755364251687,-480.0,0.00021688,2]